bitfinex-derivatives/quotes_SOLF0:USTF0_20250714
["timestamp","ask_amount","ask_price","bid_price","bid_amount"]
[1752461298499,522.82,165.22,165.03,62.0]
[1752461298500,522.82,165.22,165.13,3.44]
[1752461298696,6.0533,165.15,165.09,9.4952]
[1752461298891,3.62,165.15,165.09,3.44]
[1752461299289,203.77,165.18,165.07,3.44]
[1752461299496,8.076252,165.15,165.07,3.44]
[1752461299701,6.0541,165.13,165.07,9.4959]
[1752461300002,3.62,165.14,165.07,3.44]
[1752461300303,6.0545,165.12,165.07,3.44]
[1752461300499,3.62,165.1,165.07,3.44]
[1752461300698,3.62,165.08,165.02,3.44]
[1752461301391,3.62,165.08,165.03,6.0574]
[1752461301596,3.62,165.07,165.04,3.44]
[1752461302496,6.0556,165.09,165.04,3.44]
[1752461302800,3.62,165.07,165.0,3.44]
[1752461303102,3.62,165.06,165.0,3.44]
[1752461303296,3.62,165.06,165.0,8.076252]
[1752461303502,3.62,165.06,165.01,3.44]
[1752461303702,188.12,165.11,165.0,8.076252]
[1752461303996,3.62,165.1,165.04,3.44]
[1752461304204,3.62,165.13,165.04,3.44]
[1752461304402,3.62,165.13,165.06,3.44]
[1752461304697,6.0543,165.12,165.06,9.4961]
[1752461304906,3.62,165.16,165.06,3.44]
[1752461305291,3.62,165.12,165.06,3.44]
[1752461305801,6.0548,165.11,165.06,3.44]
[1752461305999,8.076252,165.14,165.05,3.44]
[1752461306201,3.62,165.13,165.05,3.44]
[1752461306498,3.62,165.13,164.94,218.92811675]
[1752461306499,3.62,165.07,165.02,8.076252]
[1752461306700,3.62,165.07,165.04,3.44]
[1752461306900,3.62,165.06,165.04,3.44]
[1752461307095,3.62,165.06,165.03,3.44]
[1752461307495,3.62,165.06,165.04,3.44]
[1752461308299,8.076252,165.11,165.0,6.0585]
[1752461308501,3.62,165.1,165.0,3.44]
[1752461308800,3.62,165.07,164.95,3.44]
[1752461308998,3.62,165.07,164.96,3.44]
[1752461309498,3.62,165.05,164.96,9.4999]
[1752461309704,3.62,165.05,164.97,3.44]
[1752461310099,3.62,165.0,164.95,14.136652]
[1752461310301,3.49,165.04,164.96,3.3]
[1752461310505,3.49,165.03,164.93,3.3]
[1752461310700,3.49,165.02,164.93,3.3]
[1752461311003,8.076252,164.99,164.83,523.22]
[1752461311301,5.02992058,164.98,164.89,3.3]
[1752461311505,3.49,164.97,164.89,3.3]
[1752461311805,3.49,164.94,164.89,9.3626]
[1752461312000,3.49,164.92,164.89,3.3]
[1752461313005,3.49,164.92,164.9,3.3]
[1752461313203,3.49,164.94,164.91,3.3]
[1752461313405,3.49,164.93,164.91,3.3]
[1752461313703,3.49,164.95,164.87,3.3]
[1752461313895,3.49,164.95,164.88,3.3]
[1752461314503,6.0611,164.94,164.88,3.3]
[1752461314708,3.49,164.93,164.88,3.3]
[1752461315000,3.49,164.93,164.89,3.3]
[1752461315205,3.49,164.93,164.9,3.3]
[1752461315406,3.49,164.97,164.88,3.3]
[1752461315906,13.10617258,165.0,164.9,6.062]
[1752461316107,3.49,164.99,164.93,3.3]
[1752461316801,3.49,164.98,164.88,3.3]
[1752461316995,3.49,164.98,164.89,8.076252]
[1752461317196,6.0599,164.97,164.92,3.3]
[1752461317406,3.49,165.0,164.93,3.3]
[1752461317701,3.49,164.94,164.91,3.3]
[1752461317898,3.49,164.94,164.9,3.3]
[1752461318100,200.56617258,165.01,164.9,3.3]
[1752461318296,3.49,165.0,164.92,3.3]
[1752461318701,6.059,164.99,164.94,6.0607]
[1752461318904,3.49,164.98,164.95,3.3]
[1752461319403,3.49,165.0,164.98,3.3]
[1752461320206,3.49,165.02,164.99,3.3]
[1752461320702,9.5482,165.01,164.99,3.3]
[1752461320910,3.49,164.98,164.95,3.3]
[1752461321107,3.49,164.98,164.96,3.3]
[1752461321305,3.49,164.97,164.94,3.3]
[1752461321509,3.49,164.96,164.94,3.3]
[1752461321704,9.5507,164.95,164.92,3.3]
[1752461322000,3.49,164.94,164.92,3.3]
[1752461322409,3.49,164.93,164.89,3.3]
[1752461322608,3.49,164.92,164.9,3.3]
[1752461323406,3.49,164.94,164.91,3.3]
[1752461323608,3.49,164.97,164.91,8.076252]
[1752461323808,3.49,164.97,164.92,3.3]
[1752461324003,3.49,164.97,164.94,3.3]
[1752461324217,3.49,165.01,164.91,3.3]
[1752461324513,6.0596,164.98,164.93,6.0609]
[1752461324808,3.49,165.01,164.93,3.3]
[1752461325113,6.0595,164.98,164.93,6.0609]
[1752461325306,18.25,165.05,164.95,3.3]
[1752461325512,3.49,165.04,164.95,3.3]
[1752461325714,3.49,164.99,164.96,3.3]
[1752461327312,205.25,165.08,164.93,8.076252]
[1752461327510,3.49,165.06,164.94,3.3]
[1752461327916,9.5485,165.01,164.94,3.3]
[1752461328110,3.49,165.03,164.96,8.076252]
[1752461328316,3.49,165.03,164.97,3.3]
[1752461328509,3.49,165.02,164.99,3.3]
[1752461328709,3.49,165.08,164.97,3.3]
[1752461329008,3.49,165.08,165.0,8.14580437]
[1752461329611,6.057,165.05,165.0,8.14580437]
[1752461329813,3.49,165.04,165.01,3.3]
[1752461330013,3.49,165.04,165.02,3.3]
[1752461330509,9.5472,165.04,165.02,3.3]
[1752461330705,3.49,165.03,165.02,3.3]
[1752461330910,3.49,165.03,165.0,4.84580437]
[1752461331112,3.49,165.03,165.01,3.3]
[1752461332321,4.84580437,165.07,164.91,3.3]
[1752461332509,3.49,165.02,164.93,4.84580437]
[1752461332712,3.49,165.02,164.94,4.84580437]
[1752461332913,3.49,165.0,164.96,4.84580437]
[1752461333116,3.49,165.0,164.98,3.3]
[1752461333311,4.84580437,165.07,164.98,4.84580437]
[1752461333516,3.49,165.06,164.99,3.3]
[1752461333818,3.49,165.06,165.0,8.14580437]
[1752461334017,3.49,165.08,165.03,3.3]
[1752461334219,3.49,165.11,164.94,3.3]
[1752461334517,3.49,165.11,165.04,3.3]
[1752461334718,3.49,165.08,165.05,3.3]
[1752461334918,3.49,165.07,165.05,3.3]
[1752461335324,3.49,165.12,165.01,3.3]
[1752461335622,3.49,165.08,165.01,3.3]
[1752461335814,6.0562,165.07,165.01,9.3579]
[1752461336116,3.49,165.08,165.01,3.3]
[1752461336314,3.49,165.04,165.01,3.3]
[1752461336509,3.49,165.06,164.99,3.3]
[1752461336920,6.057,165.04,164.99,6.0588]
[1752461337118,3.49,165.03,165.0,3.3]
[1752461338118,3.49,165.02,164.98,3.3]
[1752461338318,3.49,165.01,164.99,3.3]
[1752461338719,3.49,165.03,165.0,3.3]
[1752461338920,3.49,165.02,165.0,3.3]
[1752461339221,3.49,165.01,164.98,9.3591]
[1752461339520,3.49,165.01,164.99,3.3]
[1752461340325,3.35,165.02,164.96,3.3]
[1752461340822,3.35,165.02,164.96,9.3599]
[1752461341015,6.0587,165.0,164.96,3.3]
[1752461341220,3.35,165.02,164.96,3.3]
[1752461341623,3.35,165.0,164.97,3.58]
[1752461341819,3.35,164.99,164.97,3.58]
[1752461342225,3.35,164.98,164.97,3.58]
[1752461342616,4.84580437,165.03,164.92,3.58]
[1752461342824,3.35,164.95,164.86,3.58]
[1752461343029,3.35,164.95,164.87,3.58]
[1752461343224,3.35,164.91,164.88,3.58]
[1752461343424,3.35,164.9,164.88,3.58]
[1752461344027,4.84580437,164.94,164.81,185.92]
[1752461344228,6.0629,164.88,164.83,3.58]
[1752461344535,3.35,164.89,164.84,3.58]
[1752461344933,3.35,164.89,164.81,3.58]
[1752461345231,3.35,164.89,164.77,523.52]
[1752461345438,3.35,164.87,164.84,3.58]
[1752461345936,3.35,164.88,164.82,3.58]
[1752461347035,3.35,164.86,164.8,3.58]
[1752461347443,6.0645,164.84,164.8,3.58]
[1752461347741,6.0645,164.84,164.74,185.84]
[1752461347742,5.03813135,164.91,164.81,3.58]
[1752461348040,3.35,164.87,164.82,3.58]
[1752461348538,3.35,164.85,164.81,3.58]
[1752461348942,3.35,164.85,164.78,3.58]
[1752461349636,541.87,164.93,164.71,3.58]
[1752461349637,4.84580437,164.82,164.71,3.58]
[1752461349943,4.84580437,164.8,164.73,3.58]
[1752461350237,3.35,164.79,164.69,3.58]
[1752461350448,3.35,164.76,164.69,3.58]
[1752461350936,3.35,164.74,164.69,3.58]
[1752461351445,3.35,164.71,164.65,3.58]
[1752461351836,4.84580437,164.72,164.66,3.58]
[1752461352031,3.35,164.71,164.68,3.58]
[1752461352341,4.84580437,164.74,164.66,6.0706]
[1752461352542,3.35,164.69,164.66,9.6506]
[1752461352732,3.35,164.69,164.67,3.58]
[1752461352932,10.91440437,164.73,164.67,9.6506]
[1752461353132,10.91440437,164.73,164.67,6.0706]
[1752461353331,3.35,164.73,164.67,3.58]
[1752461354236,3.35,164.71,164.65,3.58]
[1752461354443,3.35,164.67,164.6,3.58]
[1752461354938,3.35,164.67,164.52,186.16]
[1752461354939,3.35,164.62,164.55,4.84580437]
[1752461355132,3.35,164.62,164.56,3.58]
[1752461355639,3.35,164.71,164.62,3.58]
[1752461355833,3.35,164.71,164.68,3.58]
[1752461356034,3.35,164.71,164.68,9.6502]
[1752461356437,6.0687,164.73,164.68,9.6502]
[1752461356639,3.35,164.7,164.68,3.58]
[1752461356848,3.35,164.73,164.69,3.58]
[1752461357043,2.58908742,164.81,164.72,3.58]
[1752461357244,3.35,164.8,164.71,3.58]
[1752461357443,3.35,164.8,164.72,4.86629362]
[1752461357841,3.35,164.78,164.72,4.86629362]
[1752461358049,3.35,164.73,164.69,3.58]
[1752461358243,5.93908742,164.72,164.7,4.86629362]
[1752461358445,4.86629362,164.8,164.69,4.86629362]
[1752461358446,3.35,164.7,164.69,4.86629362]
[1752461358644,3.35,164.77,164.67,4.86629362]
[1752461358845,3.35,164.75,164.69,4.86629362]
[1752461359044,9.4196,164.7,164.63,3.58]
[1752461359250,3.35,164.76,164.67,4.86629362]
[1752461359450,3.35,164.76,164.64,3.58]
[1752461359655,3.35,164.71,164.63,4.86629362]
[1752461360244,4.86629362,164.7,164.5,4.86629362]
[1752461360444,3.35,164.64,164.42,3.58]
[1752461360645,3.35,164.61,164.52,4.8750212]
[1752461361146,3.35,164.61,164.51,11.72743081]
[1752461362148,3.35,164.61,164.54,8.14743081]
[1752461362352,3.35,164.61,164.54,11.72743081]
[1752461363244,3.35,164.61,164.54,3.58]
[1752461363850,524.34,164.64,164.53,8.14743081]
[1752461364049,3.35,164.63,164.53,8.14743081]
[1752461364648,2.99029703,164.62,164.53,8.14743081]
[1752461364850,12.41319703,164.61,164.53,8.14743081]
[1752461365055,6.34029703,164.6,164.57,3.58]
[1752461365244,3.35,164.6,164.57,3.58]
[1752461365449,6.0707,164.67,164.6,3.58]
[1752461365747,189.0,164.72,164.6,9.6532]
[1752461365949,8.14743081,164.73,164.63,3.58]
[1752461366555,8.14743081,164.73,164.61,3.58]
[1752461367149,6.0708,164.67,164.61,3.58]
[1752461367554,6.0714,164.65,164.61,3.58]
[1752461367748,8.14743081,164.73,164.62,3.58]
[1752461367948,3.35,164.72,164.6,11.72743081]
[1752461368251,9.4221,164.63,164.6,3.58]
[1752461368455,6.0721,164.63,164.58,8.14743081]
[1752461368753,3.35,164.65,164.59,3.58]
[1752461370152,9.4214,164.65,164.59,6.0735]
[1752461370357,3.35,164.65,164.59,3.45]
[1752461370650,6.0721,164.63,164.58,8.14743081]
[1752461370855,9.6221,164.63,164.6,3.45]
[1752461371261,3.55,164.63,164.6,3.45]
[1752461371444,8.14743081,164.72,164.6,3.45]
[1752461371650,8.14743081,164.69,164.58,8.14743081]
[1752461371845,6.0727,164.62,164.58,8.14743081]
[1752461372151,3.55,164.68,164.59,3.45]
[1752461372950,6.0713,164.66,164.61,11.59743081]
[1752461373147,3.55,164.68,164.62,3.45]
[1752461373347,524.66,164.74,164.65,3.45]
[1752461373348,3.55,164.73,164.65,3.45]
[1752461374553,3.55,164.73,164.53,3.45]
[1752461374756,3.55,164.68,164.62,3.45]
[1752461375252,6.0716,164.65,164.62,3.45]
[1752461375458,3.55,164.68,164.61,8.14743081]
[1752461375755,6.0711,164.66,164.63,3.45]
[1752461375961,3.55,164.73,164.63,3.45]
[1752461376549,6.0717,164.64,164.63,3.45]
[1752461376755,3.55,164.71,164.61,3.45]
[1752461377153,3.55,164.65,164.59,8.14743081]
[1752461377360,3.55,164.65,164.62,3.45]
[1752461377557,3.55,164.65,164.59,8.14743081]
[1752461377558,3.55,164.65,164.63,3.45]
[1752461377753,6.0717,164.64,164.63,3.45]
[1752461380059,6.0728,164.62,164.61,3.45]
[1752461381160,3.55,164.62,164.59,3.45]
[1752461381464,3.55,164.68,164.59,3.45]
[1752461381761,6.0732,164.61,164.59,3.45]
[1752461381964,3.55,164.63,164.59,3.45]
[1752461382264,3.55,164.61,164.59,3.45]
[1752461382760,3.55,164.63,164.59,3.45]
[1752461382961,4.87044333,164.67,164.58,3.45]
[1752461383153,3.55,164.62,164.51,3.45]
[1752461383354,3.55,164.62,164.58,3.45]
[1752461383355,6.0735,164.6,164.58,3.45]
[1752461383553,6.0735,164.6,164.59,3.45]
[1752461384261,6.0729,164.61,164.59,3.45]
[1752461384460,6.0729,164.61,164.6,3.45]
[1752461385858,6.0737,164.59,164.58,3.45]
[1752461387661,6.0733,164.6,164.59,3.45]
[1752461388165,3.55,164.58,164.54,3.45]
[1752461388358,3.55,164.58,164.56,3.45]
[1752461388757,9.6242,164.58,164.54,4.87044333]
[1752461389068,3.55,164.59,164.57,3.45]
[1752461389369,3.55,164.58,164.55,3.45]
[1752461389572,3.55,164.58,164.52,4.87044333]
[1752461389770,8.51630356,164.63,164.57,3.45]
[1752461390071,3.55,164.63,164.57,3.45]
[1752461390466,3.55,164.62,164.57,3.45]
[1752461390769,3.55,164.62,164.55,3.45]
[1752461391169,8.51630356,164.62,164.55,3.45]
[1752461391363,6.0732,164.6,164.55,3.45]
[1752461391559,6.0732,164.6,164.48,524.66]
[1752461391560,3.55,164.62,164.58,4.87044333]
[1752461391759,3.55,164.63,164.58,4.87044333]
[1752461391966,9.6214,164.65,164.63,3.45]
[1752461392465,4.96630356,164.66,164.62,4.87044333]
[1752461392667,4.96630356,164.67,164.64,4.87044333]
[1752461392860,4.96630356,164.68,164.6,4.87044333]
[1752461393172,9.6203,164.68,164.66,3.45]
[1752461393567,3.55,164.68,164.66,3.45]
[1752461393767,5.97572914,164.71,164.66,3.45]
[1752461394168,6.0696,164.7,164.66,3.45]
[1752461394370,5.97572914,164.71,164.67,3.45]
[1752461394575,3.55,164.7,164.68,3.45]
[1752461394870,9.6198,164.7,164.68,3.45]
[1752461395373,3.55,164.7,164.67,3.45]
[1752461395773,7.3920327,164.71,164.67,3.45]
[1752461395774,9.6201,164.69,164.67,3.45]
[1752461396073,3.55,164.69,164.67,3.45]
[1752461396272,3.55,164.68,164.66,3.45]
[1752461396466,7.3920327,164.71,164.67,3.45]
[1752461396467,2.42572914,164.7,164.67,3.45]
[1752461396674,3.55,164.69,164.67,3.45]
[1752461397070,6.0702,164.68,164.67,3.45]
[1752461397463,3.55,164.68,164.63,4.87044333]
[1752461397663,3.55,164.69,164.63,4.87044333]
[1752461397862,5.07754181,164.7,164.64,3.45]
[1752461398068,3.55,164.65,164.62,3.45]
[1752461398274,5.07754181,164.69,164.61,4.87044333]
[1752461398469,3.55,164.67,164.54,187.4]
[1752461398670,3.55,164.67,164.61,3.45]
[1752461398870,5.07754181,164.67,164.61,3.45]
[1752461399165,3.55,164.65,164.58,8.32044333]
[1752461399370,3.55,164.64,164.56,4.87044333]
[1752461399574,3.55,164.64,164.58,4.87044333]
[1752461399768,3.55,164.62,164.6,3.45]
[1752461400168,5.07754181,164.64,164.61,3.45]
[1752461400474,5.07754181,164.67,164.6,4.87044333]
[1752461400674,3.6,164.64,164.62,3.56]
[1752461400875,9.672,164.64,164.62,3.56]
[1752461401069,5.07754181,164.66,164.6,8.43044333]
[1752461401268,3.6,164.62,164.61,3.56]
[1752461401574,6.0721,164.63,164.61,3.56]
[1752461401575,3.6,164.63,164.61,3.56]
[1752461401769,3.6,164.62,164.61,3.56]
[1752461401965,3.6,164.64,164.6,4.87044333]
[1752461402169,3.6,164.63,164.62,3.56]
[1752461402370,3.6,164.63,164.61,3.56]
[1752461403573,3.6,164.63,164.59,4.87044333]
[1752461403774,6.0716,164.65,164.62,3.56]
[1752461403970,3.6,164.64,164.63,3.56]
[1752461404176,3.6,164.66,164.61,4.87044333]
[1752461404378,9.6722,164.63,164.6,3.56]
[1752461404578,9.6722,164.63,164.61,3.56]
[1752461404787,3.6,164.63,164.61,3.56]
[1752461404985,6.0725,164.62,164.61,3.56]
[1752461405174,3.6,164.63,164.57,3.56]
[1752461405375,6.0734,164.6,164.58,3.56]
[1752461405679,3.6,164.61,164.59,3.56]
[1752461405876,8.67754181,164.63,164.59,3.56]
[1752461406075,5.07754181,164.65,164.6,4.87044333]
[1752461406384,3.6,164.64,164.62,3.56]
[1752461406581,5.07754181,164.66,164.63,3.56]
[1752461406776,3.6,164.65,164.64,3.56]
[1752461406976,8.67754181,164.67,164.64,3.56]
[1752461407171,3.6,164.66,164.64,3.56]
[1752461407375,11.14824181,164.67,164.65,3.56]
[1752461407682,6.071,164.66,164.65,3.56]
[1752461407881,5.07754181,164.68,164.65,3.56]
[1752461408071,3.6,164.69,164.51,6.48011838]
[1752461408072,5.07754181,164.69,164.68,3.56]
[1752461408275,5.07754181,164.7,164.68,3.56]
[1752461408482,195.49754181,164.71,164.66,4.87044333]
[1752461408679,190.42,164.71,164.69,3.56]
[1752461408982,6.0695,164.7,164.69,3.56]
[1752461409382,6.0695,164.7,164.66,4.87044333]
[1752461409577,6.0695,164.7,164.67,3.56]
[1752461409578,9.6695,164.7,164.67,3.56]
[1752461409779,9.669,164.72,164.68,4.87044333]
[1752461409980,9.669,164.72,164.7,3.56]
[1752461410979,6.0691,164.71,164.7,3.56]
[1752461411188,3.6,164.72,164.71,3.56]
[1752461411782,8.67754181,164.74,164.72,3.56]
[1752461411975,3.6,164.74,164.72,3.56]
[1752461412584,6.0684,164.73,164.72,3.56]
[1752461412784,3.6,164.73,164.7,4.87044333]
[1752461412977,3.6,164.73,164.71,3.56]
[1752461413283,3.6,164.74,164.68,8.43044333]
[1752461413589,3.6,164.74,164.68,3.56]
[1752461413787,9.6693,164.71,164.69,3.56]
[1752461413979,3.6,164.71,164.69,3.56]
[1752461414783,3.6,164.74,164.69,3.56]
[1752461415283,3.6,164.73,164.7,4.87044333]
[1752461415489,3.6,164.73,164.72,3.56]
[1752461416283,9.6684,164.73,164.72,3.56]
[1752461417087,6.0688,164.72,164.7,3.56]
[1752461417287,3.6,164.75,164.67,4.87044333]
[1752461417587,6.0697,164.7,164.68,3.56]
[1752461417786,3.6,164.7,164.68,3.56]
[1752461418379,3.6,164.7,164.69,3.56]
[1752461418587,3.6,164.71,164.69,3.56]
[1752461419086,6.0695,164.7,164.69,3.56]
[1752461419287,3.6,164.71,164.67,4.87044333]
[1752461419687,3.6,164.74,164.71,3.56]
[1752461419990,3.6,164.76,164.71,8.43044333]
[1752461420190,9.6679,164.75,164.71,4.87044333]
[1752461420391,186.4,164.77,164.74,3.56]
[1752461420592,3.6,164.76,164.74,3.56]
[1752461420887,186.4,164.77,164.74,3.56]
[1752461421092,190.0,164.77,164.75,3.56]
[1752461421293,196.067,164.77,164.75,3.56]
[1752461421587,3.6,164.79,164.76,3.56]
[1752461421791,3.6,164.78,164.76,3.56]
[1752461421993,715.61754181,164.82,164.77,3.56]
[1752461422189,3.6,164.81,164.78,3.56]
[1752461422392,3.6,164.79,164.78,3.56]
[1752461422593,9.6665,164.79,164.77,3.56]
[1752461422989,9.6665,164.79,164.78,3.56]
[1752461423189,3.6,164.79,164.76,3.56]
[1752461423384,3.6,164.78,164.76,3.56]
[1752461423691,9.6673,164.76,164.75,3.56]
[1752461423891,3.6,164.81,164.75,3.56]
[1752461424292,3.6,164.81,164.75,8.43044333]
[1752461424492,710.54,164.82,164.75,4.87044333]
[1752461424692,3.6,164.79,164.77,3.56]
[1752461424895,6.0666,164.78,164.75,4.87044333]
[1752461425098,5.07754181,164.87,164.78,3.56]
[1752461425296,3.6,164.83,164.81,3.56]
[1752461425597,9.6651,164.82,164.81,3.56]
[1752461426095,6.066,164.8,164.79,3.56]
[1752461426693,3.6,164.85,164.8,3.56]
[1752461426890,3.6,164.86,164.84,3.56]
[1752461427093,9.664,164.85,164.84,3.56]
[1752461427390,3.6,164.88,164.79,4.87044333]
[1752461427595,3.6,164.88,164.79,8.43044333]
[1752461427994,3.6,164.88,164.8,3.56]
[1752461428391,3.6,164.88,164.82,3.56]
[1752461429087,9.6634,164.87,164.84,3.56]
[1752461429394,185.58,164.89,164.84,3.56]
[1752461429395,3.6,164.88,164.84,3.56]
[1752461429594,3.6,164.88,164.82,3.56]
[1752461430096,6.0646,164.84,164.82,3.56]
[1752461430296,6.0646,164.84,164.83,3.61]
[1752461430696,3.35,164.88,164.81,8.48044333]
[1752461430992,4.87044333,164.87,164.79,3.61]
[1752461431191,6.0661,164.8,164.75,4.87044333]
[1752461431398,3.35,164.84,164.76,3.61]
[1752461431586,3.35,164.84,164.78,3.61]
[1752461431791,6.0654,164.82,164.78,3.61]
[1752461431991,185.34,164.85,164.79,4.87044333]
[1752461432193,3.35,164.83,164.8,3.61]
[1752461432493,188.69,164.85,164.81,4.87044333]
[1752461432691,3.35,164.85,164.83,3.61]
[1752461433194,9.4142,164.85,164.83,3.61]
[1752461434599,6.0644,164.84,164.83,3.61]
[1752461434800,3.35,164.88,164.83,4.87044333]
[1752461434998,3.35,164.88,164.85,3.61]
[1752461435297,185.14,164.9,164.85,3.61]
[1752461435487,3.35,164.89,164.85,3.61]
[1752461435995,6.0635,164.87,164.85,3.61]
[1752461436402,3.35,164.88,164.85,3.61]
[1752461436706,9.4136,164.86,164.85,3.61]
[1752461436903,3.35,164.86,164.83,4.87044333]
[1752461437201,9.4144,164.84,164.78,6.0664]
[1752461437407,9.4144,164.84,164.81,3.61]
[1752461437590,9.4144,164.84,164.82,3.61]
[1752461437995,3.35,164.87,164.84,3.61]
[1752461438195,3.35,164.86,164.84,3.61]
[1752461438397,3.35,164.86,164.82,4.87044333]
[1752461438600,6.0637,164.86,164.82,10.93554333]
[1752461438896,6.0637,164.86,164.85,3.61]
[1752461439095,3.35,164.88,164.86,3.61]
[1752461440098,6.0634,164.87,164.86,3.61]
[1752461440902,6.0639,164.86,164.85,3.61]
[1752461441104,3.35,164.86,164.82,8.48044333]
[1752461441401,3.35,164.88,164.82,3.61]
[1752461442093,6.0646,164.84,164.83,3.61]
[1752461442604,9.4146,164.84,164.83,3.61]
[1752461443101,6.0648,164.83,164.81,3.61]
[1752461443296,6.0648,164.83,164.82,3.61]
[1752461446506,9.4148,164.83,164.82,3.61]
[1752461447609,6.0648,164.83,164.82,3.61]
[1752461448409,3.35,164.89,164.82,3.61]
[1752461448598,3.35,164.89,164.86,2.91465379]
[1752461448801,6.0629,164.88,164.87,3.61]
[1752461449006,9.4129,164.88,164.87,3.61]
[1752461449402,6.0633,164.87,164.86,6.52465379]
[1752461449903,6.063,164.88,164.86,2.91465379]
[1752461450104,3.35,164.94,164.87,3.61]
[1752461450412,3.35,164.94,164.9,3.61]
[1752461450611,3.35,164.94,164.91,6.52465379]
[1752461450908,3.35,164.95,164.93,6.52465379]
[1752461451114,6.0607,164.94,164.93,6.52465379]
[1752461451306,3.35,164.95,164.93,6.52465379]
[1752461451704,708.4,164.99,164.93,6.52465379]
[1752461451705,9.4107,164.94,164.93,6.52465379]
[1752461451907,9.4107,164.94,164.93,3.61]
[1752461454007,3.35,164.96,164.93,3.61]
[1752461454309,3.35,164.95,164.93,3.61]
[1752461454710,6.0607,164.94,164.93,3.61]
[1752461459010,9.4107,164.94,164.93,3.61]
[1752461459810,6.0607,164.94,164.93,3.61]
[1752461463304,9.3607,164.94,164.93,3.61]
[1752461463511,6.0613,164.93,164.91,8.25149453]
[1752461463709,9.3613,164.93,164.92,3.4]
[1752461464309,6.0613,164.93,164.92,3.4]
[1752461465216,3.3,164.93,164.81,3.4]
[1752461465516,3.3,164.93,164.86,3.4]
[1752461465714,8.15149453,164.93,164.86,3.4]
[1752461465918,3.3,164.91,164.84,4.85149453]
[1752461466120,3.3,164.91,164.85,3.4]
[1752461466820,3.3,164.91,164.87,3.4]
[1752461467014,6.0627,164.89,164.87,3.4]
[1752461467217,6.0627,164.89,164.88,3.4]
[1752461467522,184.22,164.94,164.84,4.85149453]
[1752461467523,189.27616143,164.94,164.84,4.85149453]
[1752461467714,189.27616143,164.94,164.85,3.4]
[1752461467910,3.3,164.89,164.85,3.4]
[1752461468318,9.3628,164.89,164.85,3.4]
[1752461468920,6.0629,164.88,164.85,3.4]
[1752461469420,3.3,164.89,164.85,3.4]
[1752461469924,4.85149453,164.93,164.85,3.4]